fUST/lending_fUST_20250804
["ID","MTS","AMOUNT","RATE_DAILY","PERIOD"]
[377273669,1754311846758,-205.987949,0.00033943,14]
[377273670,1754311846767,-205.987949,0.00033943,14]
[377273671,1754311846777,-151.0,0.00033944,14]
[377273672,1754311846786,-492.88,0.00033972,2]
[377273673,1754311846795,-1581.02,0.00033972,2]
[377273674,1754311846804,-460.0,0.00033972,2]
[377273675,1754311846813,-460.0,0.00033972,2]
[377273676,1754311846823,-761.43,0.00033972,2]
[377273677,1754311846832,-460.0,0.00033972,2]
[377273678,1754311846841,-460.0,0.00033972,2]
[377273679,1754311846851,-460.0,0.00033972,2]
[377273680,1754311846862,-460.0,0.00033972,2]
[377273681,1754311846872,-460.0,0.00033972,2]
[377273682,1754311846881,-460.0,0.00033972,2]
[377273683,1754311846890,-460.0,0.00033972,2]
[377273684,1754311846900,-460.0,0.00033972,2]
[377273685,1754311846909,-460.0,0.00033972,2]
[377273686,1754311846918,-1093.34,0.00033972,2]
[377273687,1754311846928,-821.02,0.00033972,2]
[377273688,1754311846937,-460.0,0.00033972,2]
[377273689,1754311846946,-642.65,0.00033972,2]
[377273690,1754311846956,-460.0,0.00033972,2]
[377273691,1754311846965,-8561.12,0.00033972,2]
[377273692,1754311846975,-460.0,0.00033972,2]
[377273693,1754311846984,-277.82151906,0.00033972,2]
[377273694,1754311846993,-536.98,0.00033972,2]
[377273695,1754311847003,-467.54,0.00033972,2]
[377273696,1754311847012,-685.73,0.00033972,2]
[377273697,1754311847022,-460.0,0.00033972,2]
[377273698,1754311847033,-460.0,0.00033972,2]
[377273699,1754311847042,-460.0,0.00033972,2]
[377273700,1754311847052,-971.43,0.00033972,2]
[377273701,1754311847061,-1113.28,0.00033972,2]
[377273702,1754311847070,-565.3,0.00033972,2]
[377273703,1754311847080,-460.62,0.00033972,2]
[377273704,1754311847089,-8976.9,0.00033972,2]
[377273705,1754311847098,-4006.22,0.00033972,2]
[377273706,1754311847108,-693.8,0.00033972,2]
[377273707,1754311847117,-927.17,0.00033972,2]
[377273708,1754311847127,-460.0,0.00033972,2]
[377273709,1754311847137,-1361.09,0.00033972,2]
[377273710,1754311847147,-481.77,0.00033972,2]
[377273711,1754311847157,-460.0,0.00033972,2]
[377273712,1754311847168,-460.0,0.00033972,2]
[377273713,1754311847181,-3589.47,0.00033972,2]
[377273714,1754311847198,-715.99,0.00033972,2]
[377273715,1754311847208,-2376.05,0.00033972,2]
[377273716,1754311847217,-460.0,0.00033972,2]
[377273717,1754311847227,-460.0,0.00033972,2]
[377273718,1754311847237,-251.39826566,0.00033972,2]
[377273719,1754311847247,-580.31,0.00033972,2]
[377273720,1754311847256,-460.0,0.00033972,2]
[377273721,1754311847265,-460.0,0.00033972,2]
[377273722,1754311847275,-460.0,0.00033972,2]
[377273723,1754311847284,-654.57,0.00033972,2]
[377273724,1754311847293,-607.6,0.00033972,2]
[377273725,1754311847303,-851.75,0.00033972,2]
[377273726,1754311847312,-735.06,0.00033972,2]
[377273727,1754311847321,-678.36,0.00033972,2]
[377273728,1754311847330,-570.5,0.00033972,2]
[377273729,1754311847340,-2115.23,0.00033972,2]
[377273730,1754311847349,-460.0,0.00033972,2]
[377273731,1754311847359,-460.0,0.00033972,2]
[377273732,1754311847368,-460.0,0.00033972,2]
[377273733,1754311847378,-1345.28,0.00033972,2]
[377273734,1754311847388,-1782.74,0.00033972,2]
[377273735,1754311847397,-472.01,0.00033972,2]
[377273736,1754311847406,-530.11,0.00033972,2]
[377273737,1754311847415,-460.0,0.00033972,2]
[377273738,1754311847424,-460.0,0.00033972,2]
[377273739,1754311847433,-802.19,0.00033972,2]
[377273740,1754311847443,-460.0,0.00033972,2]
[377273741,1754311847453,-643.57,0.00033972,2]
[377273742,1754311847462,-460.0,0.00033972,2]
[377273743,1754311847471,-3624.84,0.00033972,2]
[377273744,1754311847481,-1233.37,0.00033972,2]
[377273745,1754311847490,-1018.18,0.00033972,2]
[377273746,1754311847499,-886.75,0.00033972,2]
[377273747,1754311847509,-1185.93,0.00033972,2]
[377273748,1754311847519,-3077.58,0.00033972,2]
[377273749,1754311847529,-460.0,0.00033972,2]
[377273750,1754311847538,-499.06,0.00033972,2]
[377273751,1754311847547,-488.53,0.00033972,2]
[377273752,1754311847557,-460.0,0.00033972,2]
[377273753,1754311847566,-460.0,0.00033972,2]
[377273754,1754311847576,-840.41,0.00033972,2]
[377273755,1754311847585,-3392.28,0.00033972,2]
[377273756,1754311847595,-807.42,0.00033972,2]
[377273757,1754311847605,-460.0,0.00033972,2]
[377273758,1754311847614,-1119.24,0.00033972,2]
[377273759,1754311847624,-631.58,0.00033972,2]
[377273760,1754311847635,-953.89,0.00033972,2]
[377273761,1754311847644,-565.28,0.00033972,2]
[377273762,1754311847653,-500.0,0.00033973,5]
[377273763,1754311847664,-378.44,0.0003398,2]
[377273764,1754311847674,-442.25,0.00033997,60]
[377273765,1754311847683,-470.0,0.00034,120]
[377273766,1754311847692,-2808.4,0.00034,7]
[377273767,1754311847702,-3859.61540446,0.00034003,30]
[377273768,1754311847712,-2457.65667999,0.00034008,5]
[377273769,1754311847721,-460.0,0.00034071,2]
[377273770,1754311847731,-460.0,0.00034071,2]
[377273771,1754311847824,-460.0,0.00034071,2]
[377273772,1754311847834,-460.0,0.00034071,2]
[377273773,1754311847843,-460.0,0.00034071,2]
[377273774,1754311847853,-718.91,0.00034071,2]
[377273775,1754311847866,-460.0,0.00034071,2]
[377273776,1754311847875,-1113.04,0.00034071,2]
[377273777,1754311847884,-1149.14,0.00034071,2]
[377273778,1754311847893,-499.4,0.00034071,2]
[377273779,1754311847904,-460.0,0.00034071,2]
[377273780,1754311847913,-492.25,0.00034071,2]
[377273781,1754311847923,-460.0,0.00034071,2]
[377273782,1754311847932,-460.0,0.00034071,2]
[377273783,1754311847942,-460.0,0.00034071,2]
[377273784,1754311847951,-1294.69,0.00034071,2]
[377273785,1754311847961,-822.77,0.00034071,2]
[377273786,1754311847970,-460.0,0.00034071,2]
[377273787,1754311847980,-442.25,0.00034097,60]
[377273788,1754311847990,-40833.77,0.000341,14]
[377273789,1754311848000,-11667.14697414,0.00034104,2]
[377273790,1754311848009,-151.0,0.00034116,14]
[377273791,1754311848018,-151.0,0.00034116,14]
[377273792,1754311848028,-151.0,0.00034116,14]
[377273793,1754311848038,-560.0,0.00034162,2]
[377273794,1754311848048,-1355.17774446,0.00034164,5]
[377273795,1754311848058,-460.0,0.00034174,2]
[377273796,1754311848067,-892.09,0.00034174,2]
[377273797,1754311848077,-509.98,0.00034174,2]
[377273798,1754311848086,-460.0,0.00034174,2]
[377273799,1754311848096,-460.0,0.00034174,2]
[377273800,1754311848106,-460.0,0.00034174,2]
[377273801,1754311848116,-477.41,0.00034174,2]
[377273802,1754311848125,-460.0,0.00034174,2]
[377273803,1754311848136,-518.99,0.00034184,2]
[377273804,1754311848146,-524.14,0.00034184,2]
[377273805,1754311848155,-600.11,0.00034184,2]
[377273806,1754311848165,-460.0,0.00034184,2]
[377273807,1754311848175,-593.56,0.00034184,2]
[377273808,1754311848183,-460.0,0.00034184,2]
[377273809,1754311848193,-1051.0,0.00034184,2]
[377273810,1754311848202,-11950.49,0.00034184,2]
[377273811,1754311848211,-1177.57,0.00034184,2]
[377273812,1754311848221,-460.0,0.00034193,2]
[377273813,1754311848231,-460.0,0.00034193,2]
[377273814,1754311848240,-460.0,0.00034193,2]
[377273815,1754311848250,-460.0,0.00034193,2]
[377273816,1754311848259,-460.0,0.00034193,2]
[377273817,1754311848269,-460.0,0.00034193,2]
[377273818,1754311848278,-460.0,0.00034193,2]
[377273819,1754311848287,-748.92,0.00034193,2]
[377273820,1754311848321,-460.0,0.00034193,2]
[377273821,1754311848330,-460.0,0.00034193,2]
[377273822,1754311848340,-151.0,0.00034193,14]
[377273823,1754311848349,-460.0,0.00034193,2]
[377273824,1754311848359,-460.0,0.00034193,2]
[377273825,1754311848369,-467.21,0.00034193,2]
[377273826,1754311848379,-460.0,0.00034193,2]
[377273827,1754311848388,-460.0,0.00034193,2]
[377273828,1754311848397,-460.0,0.00034193,2]
[377273829,1754311848407,-460.0,0.00034193,2]
[377273830,1754311848416,-460.0,0.00034193,2]
[377273831,1754311848425,-460.0,0.00034193,2]
[377273832,1754311848435,-469.84779222,0.00034193,2]
[377273833,1754311848444,-460.0,0.00034193,2]
[377273834,1754311848453,-460.0,0.00034193,2]
[377273835,1754311848463,-460.0,0.00034193,2]
[377273836,1754311848472,-301.47104184,0.00034193,2]
[377273837,1754311848482,-460.0,0.00034193,2]
[377273839,1754311848491,-460.0,0.00034193,2]
[377273840,1754311848500,-460.0,0.00034193,2]
[377273842,1754311848510,-487.33350471,0.00034193,2]
[377273844,1754311848519,-572.96,0.00034193,2]
[377273846,1754311848529,-460.0,0.00034193,2]
[377273848,1754311848538,-460.0,0.00034193,2]
[377273850,1754311848547,-460.0,0.00034193,2]
[377273852,1754311848556,-499.76,0.00034193,2]
[377273854,1754311848566,-524.37,0.00034193,2]
[377273856,1754311848578,-460.0,0.00034193,2]
[377273858,1754311848796,-153.81182,0.00034193,14]
[377273860,1754311848806,-460.0,0.00034193,2]
[377273862,1754311848815,-930.83,0.00034193,2]
[377273864,1754311848824,-266.19717852,0.00034193,2]
[377273865,1754311848834,-151.0,0.00034195,14]
[377273867,1754311848844,-442.25,0.00034197,60]
[377273868,1754311848856,-151.0,0.00034204,14]
[377273870,1754311848866,-151.0,0.00034204,14]
[377273872,1754311848875,-151.0,0.00034204,14]
[377273874,1754311848885,-2094.74,0.00034204,2]
[377273875,1754311848895,-499.33,0.00034204,2]
[377273877,1754311848905,-554.85,0.00034204,2]
[377273879,1754311848915,-460.0,0.00034204,2]
[377273880,1754311848924,-737.24,0.00034204,2]
[377273881,1754311848934,-460.0,0.00034204,2]
[377273883,1754311848943,-5894.54,0.00034204,2]
[377273884,1754311848953,-460.0,0.00034204,2]
[377273885,1754311848962,-854.96,0.00034204,2]
[377273887,1754311848973,-460.0,0.00034204,2]
[377273889,1754311848983,-460.0,0.00034204,2]
[377273890,1754311848992,-460.0,0.00034204,2]
[377273891,1754311849001,-460.0,0.00034204,2]
[377273892,1754311849011,-4494.32,0.00034204,2]
[377273893,1754311849021,-11890.23,0.00034204,2]
[377273894,1754311849030,-460.0,0.00034204,2]
[377273896,1754311849039,-460.0,0.00034204,2]
[377273897,1754311849049,-3023.81,0.00034204,2]
[377273898,1754311849059,-151.0,0.00034204,14]
[377273899,1754311849069,-214.001118,0.00034205,14]
[377273900,1754311849078,-151.0,0.00034205,14]
[377273901,1754311849087,-460.0,0.00034205,2]
[377273902,1754311849097,-460.0,0.00034205,2]
[377273903,1754311849106,-484.97,0.00034205,2]
[377273904,1754311849118,-460.0,0.00034205,2]
[377273905,1754311849130,-541.952071,0.00034205,14]
[377273906,1754311849142,-541.952071,0.00034205,14]
[377273907,1754311849157,-151.0,0.00034205,14]
[377273908,1754311849178,-151.0,0.00034205,14]
[377273909,1754311849198,-460.0,0.00034205,2]
[377273910,1754311849208,-151.0,0.00034205,14]
[377273911,1754311849218,-460.0,0.00034205,2]
[377273912,1754311849228,-151.0,0.00034208,14]
[377273913,1754311849237,-151.0,0.00034208,14]
[377273914,1754311849246,-151.0,0.00034208,14]
[377273915,1754311849256,-151.0,0.00034217,14]
[377273916,1754311849266,-157.810469,0.00034217,14]
[377273917,1754311849275,-151.0,0.00034218,14]
[377273918,1754311849285,-300.0,0.00034221,5]
[377273919,1754311849294,-205.987949,0.00034221,14]
[377273920,1754311849303,-205.987949,0.00034221,14]
[377273921,1754311849313,-2500.0,0.00034246,7]
[377273922,1754311849322,-492.88,0.00034246,2]
[377273923,1754311849331,-1581.02,0.00034246,2]
[377273924,1754311849341,-460.0,0.00034246,2]
[377273925,1754311849350,-460.0,0.00034246,2]
[377273926,1754311849360,-761.43,0.00034246,2]
[377273927,1754311849369,-460.0,0.00034246,2]
[377273928,1754311849378,-460.0,0.00034246,2]
[377273929,1754311849389,-460.0,0.00034246,2]
[377273930,1754311849399,-460.0,0.00034246,2]
[377273931,1754311849408,-460.0,0.00034246,2]
[377273932,1754311849418,-460.0,0.00034246,2]
[377273933,1754311849427,-460.0,0.00034246,2]
[377273934,1754311849436,-460.0,0.00034246,2]
[377273935,1754311849445,-460.0,0.00034246,2]
[377273936,1754311849455,-1093.34,0.00034246,2]
[377273937,1754311849464,-821.02,0.00034246,2]
[377273938,1754311849474,-460.0,0.00034246,2]
[377273939,1754311849483,-642.65,0.00034246,2]
[377273940,1754311849492,-460.0,0.00034246,2]
[377273941,1754311849501,-8561.12,0.00034246,2]
[377273942,1754311849511,-460.0,0.00034246,2]
[377273943,1754311849521,-536.98,0.00034246,2]
[377273944,1754311849530,-467.54,0.00034246,2]
[377273945,1754311849540,-685.73,0.00034246,2]
[377273946,1754311849549,-460.0,0.00034246,2]
[377273947,1754311849559,-460.0,0.00034246,2]
[377273948,1754311849568,-460.0,0.00034246,2]
[377273949,1754311849577,-971.43,0.00034246,2]
[377273950,1754311849587,-1113.28,0.00034246,2]
[377273951,1754311849596,-565.3,0.00034246,2]
[377273952,1754311849606,-460.62,0.00034246,2]
[377273953,1754311849616,-8976.9,0.00034246,2]
[377273954,1754311849626,-4006.22,0.00034246,2]
[377273955,1754311849636,-693.8,0.00034246,2]
[377273956,1754311849645,-927.17,0.00034246,2]
[377273957,1754311849655,-460.0,0.00034246,2]
[377273958,1754311849664,-1361.09,0.00034246,2]
[377273959,1754311849752,-481.77,0.00034246,2]
[377273960,1754311849762,-460.0,0.00034246,2]
[377273961,1754311849771,-460.0,0.00034246,2]
[377273962,1754311849781,-3589.47,0.00034246,2]
[377273963,1754311849790,-715.99,0.00034246,2]
[377273964,1754311849800,-2376.05,0.00034246,2]
[377273965,1754311849809,-460.0,0.00034246,2]
[377273966,1754311849819,-460.0,0.00034246,2]
[377273967,1754311849829,-580.31,0.00034246,2]
[377273968,1754311849838,-460.0,0.00034246,2]
[377273969,1754311849849,-460.0,0.00034246,2]
[377273970,1754311849864,-460.0,0.00034246,2]
[377273971,1754311849873,-654.57,0.00034246,2]
[377273972,1754311849883,-607.6,0.00034246,2]
[377273973,1754311849892,-851.75,0.00034246,2]
[377273974,1754311849903,-735.06,0.00034246,2]
[377273975,1754311849912,-678.36,0.00034246,2]
[377273976,1754311849922,-570.5,0.00034246,2]
[377273977,1754311849932,-2115.23,0.00034246,2]
[377273978,1754311849942,-460.0,0.00034246,2]
[377273979,1754311849952,-460.0,0.00034246,2]
[377273980,1754311849962,-460.0,0.00034246,2]
[377273981,1754311849971,-1345.28,0.00034246,2]
[377273982,1754311849981,-1782.74,0.00034246,2]
[377273983,1754311849991,-472.01,0.00034246,2]
[377273984,1754311850000,-530.11,0.00034246,2]
[377273985,1754311850010,-460.0,0.00034246,2]
[377273986,1754311850020,-460.0,0.00034246,2]
[377273987,1754311850030,-802.19,0.00034246,2]
[377273988,1754311850040,-460.0,0.00034246,2]
[377273989,1754311850050,-643.57,0.00034246,2]
[377273990,1754311850059,-460.0,0.00034246,2]
[377273991,1754311850069,-1233.37,0.00034246,2]
[377273992,1754311850079,-3624.84,0.00034246,2]
[377273993,1754311850088,-1018.18,0.00034246,2]
[377273994,1754311850098,-886.75,0.00034246,2]
[377273995,1754311850108,-1185.93,0.00034246,2]
[377273996,1754311850117,-3077.58,0.00034246,2]
[377273997,1754311850127,-499.06,0.00034246,2]
[377273998,1754311850137,-7972.13,0.00034246,120]
[377273999,1754311850147,-460.0,0.00034246,2]
[377274000,1754311850156,-488.53,0.00034246,2]
[377274001,1754311850165,-460.0,0.00034246,2]
[377274002,1754311850175,-460.0,0.00034246,2]
[377274003,1754311850184,-840.41,0.00034246,2]
[377274004,1754311850194,-3392.28,0.00034246,2]
[377274005,1754311850203,-807.42,0.00034246,2]
[377274006,1754311850213,-460.0,0.00034246,2]
[377274007,1754311850223,-1119.24,0.00034246,2]
[377274008,1754311850232,-631.58,0.00034246,2]
[377274009,1754311850242,-953.89,0.00034246,2]
[377274010,1754311850252,-565.28,0.00034246,2]
[377274011,1754311850261,-344.05616948,0.00034252,2]
[377274012,1754311850271,-1000.0,0.00034268,5]
[377274013,1754311850280,-1500.0,0.00034268,2]
[377274014,1754311850289,-1500.0,0.00034268,5]
[377274015,1754311850299,-1514.68043238,0.00034268,5]
[377274016,1754311850308,-1500.0,0.00034268,5]
[377274017,1754311850318,-1500.0,0.00034268,5]
[377274018,1754311850328,-1026.96591322,0.00034268,5]
[377274019,1754311850337,-442.25,0.00034297,60]
[377274020,1754311850347,-3859.61540446,0.00034314,30]
[377274021,1754311850357,-460.0,0.00034345,2]
[377274022,1754311850366,-460.0,0.00034345,2]
[377274023,1754311850376,-460.0,0.00034345,2]
[377274024,1754311850386,-460.0,0.00034345,2]
[377274025,1754311850397,-460.0,0.00034345,2]
[377274026,1754311850407,-718.91,0.00034345,2]
[377274027,1754311850417,-460.0,0.00034345,2]
[377274028,1754311850426,-1113.04,0.00034345,2]
[377274029,1754311850436,-1149.14,0.00034345,2]
[377274030,1754311850446,-499.4,0.00034345,2]
[377274031,1754311850456,-460.0,0.00034345,2]
[377274032,1754311850465,-492.25,0.00034345,2]
[377274033,1754311850475,-460.0,0.00034345,2]
[377274034,1754311850484,-460.0,0.00034345,2]
[377274035,1754311850494,-460.0,0.00034345,2]
[377274036,1754311850503,-1294.69,0.00034345,2]
[377274037,1754311850512,-822.77,0.00034345,2]
[377274038,1754311850526,-460.0,0.00034345,2]
[377274039,1754311850535,-151.0,0.00034373,14]
[377274040,1754311850545,-500.0,0.00034383,7]
[377274041,1754311850555,-160.0,0.00034386,2]
[377274042,1754311850564,-215.16777298,0.00034386,2]
[377274043,1754311850573,-842.05743881,0.00034393,2]
[377274044,1754311850590,-160.0,0.00034393,2]
[377274045,1754311850600,-231.67098287,0.00034393,2]
[377274047,1754311850610,-442.25,0.00034397,60]
[377274049,1754311850620,-160.0,0.00034402,2]
[377274051,1754311850629,-160.0,0.00034402,2]
[377274053,1754311850639,-151.0,0.0003442,14]
[377274054,1754311850648,-151.0,0.0003442,14]
[377274055,1754311850657,-200.0,0.00034447,120]
[377274056,1754311850666,-460.0,0.00034448,2]
[377274057,1754311850676,-892.09,0.00034448,2]
[377274058,1754311850685,-509.98,0.00034448,2]
[377274059,1754311850694,-460.0,0.00034448,2]
[377274061,1754311850704,-460.0,0.00034448,2]
[377274062,1754311850713,-460.0,0.00034448,2]
[377274063,1754311850722,-477.41,0.00034448,2]
[377274064,1754311850732,-460.0,0.00034448,2]
[377274065,1754311850741,-518.99,0.00034458,2]
[377274066,1754311850750,-524.14,0.00034458,2]
[377274067,1754311850760,-600.11,0.00034458,2]
[377274068,1754311850769,-460.0,0.00034458,2]
[377274069,1754311850779,-593.56,0.00034458,2]
[377274070,1754311850788,-460.0,0.00034458,2]
[377274071,1754311850798,-1051.0,0.00034458,2]
[377274072,1754311850807,-11950.49,0.00034458,2]
[377274073,1754311850817,-1177.57,0.00034458,2]
[377274074,1754311850826,-460.0,0.00034467,2]
[377274075,1754311850836,-460.0,0.00034467,2]
[377274076,1754311850846,-460.0,0.00034467,2]
[377274077,1754311850859,-460.0,0.00034467,2]
[377274078,1754311850869,-460.0,0.00034467,2]
[377274079,1754311850878,-460.0,0.00034467,2]
[377274080,1754311850890,-460.0,0.00034467,2]
[377274081,1754311850899,-748.92,0.00034467,2]
[377274082,1754311850910,-460.0,0.00034467,2]
[377274083,1754311850920,-460.0,0.00034467,2]
[377274084,1754311850929,-597.3374503,0.00034467,2]
[377274085,1754311850941,-460.0,0.00034467,2]
[377274086,1754311850951,-467.21,0.00034467,2]
[377274087,1754311850961,-460.0,0.00034467,2]
[377274088,1754311850970,-460.0,0.00034467,2]
[377274089,1754311850980,-460.0,0.00034467,2]
[377274090,1754311850990,-460.0,0.00034467,2]
[377274091,1754311850999,-460.0,0.00034467,2]
[377274092,1754311851008,-460.0,0.00034467,2]
[377274093,1754311851017,-460.0,0.00034467,2]
[377274094,1754311851028,-460.0,0.00034467,2]
[377274095,1754311851037,-460.0,0.00034467,2]
[377274096,1754311851047,-460.0,0.00034467,2]
[377274097,1754311851055,-460.0,0.00034467,2]
[377274098,1754311851065,-460.0,0.00034467,2]
[377274099,1754311851074,-572.96,0.00034467,2]
[377274100,1754311851083,-460.0,0.00034467,2]
[377274101,1754311851093,-460.0,0.00034467,2]
[377274102,1754311851102,-460.0,0.00034467,2]
[377274103,1754311851111,-499.76,0.00034467,2]
[377274104,1754311851121,-524.37,0.00034467,2]
[377274105,1754311851130,-460.0,0.00034467,2]
[377274106,1754311851140,-460.0,0.00034467,2]
[377274107,1754311851149,-930.83,0.00034467,2]
[377274108,1754311851158,-151.0,0.00034478,14]
[377274109,1754311851168,-151.0,0.00034478,14]
[377274110,1754311851178,-171.547005,0.00034478,14]
[377274111,1754311851188,-2094.74,0.00034478,2]
[377274112,1754311851197,-499.33,0.00034478,2]
[377274113,1754311851207,-554.85,0.00034478,2]
[377274114,1754311851216,-460.0,0.00034478,2]
[377274115,1754311851302,-737.24,0.00034478,2]
[377274116,1754311851312,-460.0,0.00034478,2]
[377274117,1754311851322,-5894.54,0.00034478,2]
[377274118,1754311851332,-460.0,0.00034478,2]
[377274119,1754311851342,-854.96,0.00034478,2]
[377274120,1754311851351,-460.0,0.00034478,2]
[377274121,1754311851361,-460.0,0.00034478,2]
[377274122,1754311851370,-460.0,0.00034478,2]
[377274123,1754311851379,-460.0,0.00034478,2]
[377274124,1754311851389,-4494.32,0.00034478,2]
[377274125,1754311851398,-11890.23,0.00034478,2]
[377274126,1754311851408,-460.0,0.00034478,2]
[377274127,1754311851417,-460.0,0.00034478,2]
[377274128,1754311851427,-3023.81,0.00034478,2]
[377274129,1754311851436,-151.0,0.00034478,14]
[377274130,1754311851445,-151.0,0.00034479,14]
[377274131,1754311851455,-460.0,0.00034479,2]
[377274132,1754311851465,-460.0,0.00034479,2]
[377274133,1754311851474,-484.97,0.00034479,2]
[377274134,1754311851484,-460.0,0.00034479,2]
[377274135,1754311851493,-460.0,0.00034479,2]
[377274136,1754311851502,-460.0,0.00034479,2]
[377274137,1754311851511,-151.0,0.00034482,14]
[377274138,1754311851521,-541.952071,0.00034482,14]
[377274139,1754311851530,-541.952071,0.00034482,14]
[377274140,1754311851540,-151.0,0.00034482,14]
[377274141,1754311851550,-151.0,0.00034482,14]
[377274142,1754311851559,-151.0,0.00034482,14]
[377274143,1754311851568,-151.0,0.0003449,14]
[377274144,1754311851580,-151.0,0.0003449,14]
[377274145,1754311851591,-151.0,0.00034491,14]
[377274146,1754311851600,-151.0,0.00034491,14]
[377274147,1754311851609,-442.25,0.00034497,60]
[377274148,1754311851619,-758.74,0.000345,7]
[377274149,1754311851628,-151.0,0.000345,14]
[377274150,1754311851638,-205.987949,0.000345,14]
[377274151,1754311851648,-205.987949,0.000345,14]
[377274152,1754311851657,-151.0,0.000345,14]
[377274153,1754311851666,-2249.86408585,0.00034503,2]
[377274154,1754311851675,-492.88,0.0003452,2]
[377274155,1754311851685,-1581.02,0.0003452,2]
[377274156,1754311851694,-460.0,0.0003452,2]
[377274157,1754311851705,-460.0,0.0003452,2]
[377274158,1754311851715,-761.43,0.0003452,2]
[377274159,1754311851725,-460.0,0.0003452,2]
[377274160,1754311851734,-460.0,0.0003452,2]
[377274161,1754311851743,-460.0,0.0003452,2]
[377274162,1754311851752,-460.0,0.0003452,2]
[377274163,1754311851762,-460.0,0.0003452,2]
[377274164,1754311851772,-460.0,0.0003452,2]
[377274165,1754311851781,-460.0,0.0003452,2]
[377274166,1754311851791,-460.0,0.0003452,2]
[377274167,1754311851800,-460.0,0.0003452,2]
[377274168,1754311851811,-1093.34,0.0003452,2]
[377274169,1754311851820,-821.02,0.0003452,2]
[377274170,1754311851829,-460.0,0.0003452,2]
[377274171,1754311851838,-642.65,0.0003452,2]
[377274172,1754311851847,-460.0,0.0003452,2]
[377274173,1754311851862,-8561.12,0.0003452,2]
[377274174,1754311851872,-460.0,0.0003452,2]
[377274175,1754311851882,-536.98,0.0003452,2]
[377274176,1754311851891,-467.54,0.0003452,2]
[377274177,1754311851901,-685.73,0.0003452,2]
[377274178,1754311851911,-460.0,0.0003452,2]
[377274179,1754311851921,-460.0,0.0003452,2]
[377274180,1754311851930,-460.0,0.0003452,2]
[377274181,1754311851941,-971.43,0.0003452,2]
[377274182,1754311851950,-1113.28,0.0003452,2]
[377274183,1754311851960,-565.3,0.0003452,2]
[377274184,1754311851970,-460.62,0.0003452,2]
[377274185,1754311851980,-8976.9,0.0003452,2]
[377274186,1754311851990,-4006.22,0.0003452,2]
[377274187,1754311851999,-693.8,0.0003452,2]
[377274188,1754311852009,-927.17,0.0003452,2]
[377274189,1754311852018,-460.0,0.0003452,2]
[377274190,1754311852028,-1361.09,0.0003452,2]
[377274191,1754311852038,-481.77,0.0003452,2]
[377274192,1754311852049,-460.0,0.0003452,2]
[377274193,1754311852060,-460.0,0.0003452,2]
[377274194,1754311852070,-3589.47,0.0003452,2]
[377274195,1754311852082,-715.99,0.0003452,2]
[377274196,1754311852092,-2376.05,0.0003452,2]